lending/lending_fUSD_20240604
["ID","MTS","AMOUNT","RATE_DAILY","PERIOD"]
[328561682,1717541449576,-526911.521095,0.0002948,2]
[328561683,1717541449585,-1525413.28554623,0.0002948,2]
[328561684,1717541449595,-5500.62572399,0.0002948,2]
[328561685,1717541449604,-295.61917718,0.0002948,2]
[328561686,1717541449613,-32975.47522213,0.0002948,2]
[328561687,1717541449623,-222.71344,0.0002948,7]
[328561688,1717541449632,-222.71344,0.0002948,7]
[328561689,1717541449641,-151.0,0.0002948,7]
[328561690,1717541449650,-151.0,0.0002948,7]
[328561691,1717541449660,-151.0,0.0002948,7]
[328561692,1717541449670,-151.0,0.0002948,7]
[328561693,1717541449679,-209.259138,0.0002948,7]
[328561694,1717541449689,-209.259138,0.0002948,7]
[328561695,1717541449698,-209.259138,0.0002948,7]
[328561696,1717541449707,-209.259138,0.0002948,7]
[328561697,1717541449717,-209.259138,0.0002948,7]
[328561698,1717541449726,-209.259138,0.0002948,7]
[328561699,1717541449735,-161.936876,0.0002948,7]
[328561700,1717541449744,-161.936876,0.0002948,7]
[328561701,1717541449753,-161.936876,0.0002948,7]
[328561702,1717541449762,-161.936876,0.0002948,7]
[328561703,1717541449771,-161.936876,0.0002948,7]
[328561704,1717541449780,-161.936876,0.0002948,7]
[328561705,1717541449789,-151.0,0.0002948,7]
[328561706,1717541449798,-151.0,0.0002948,7]
[328561707,1717541449807,-246.819955,0.0002948,7]
[328561708,1717541449816,-225.722074,0.0002948,7]
[328561709,1717541449825,-225.722074,0.0002948,7]
[328561710,1717541449834,-225.722074,0.0002948,7]
[328561711,1717541449843,-179.569332,0.0002948,7]
[328561712,1717541449852,-179.569332,0.0002948,7]
[328561713,1717541449862,-179.569332,0.0002948,7]
[328561714,1717541449871,-179.569332,0.0002948,7]
[328561715,1717541449881,-179.569332,0.0002948,7]
[328561716,1717541449892,-179.569332,0.0002948,7]
[328561717,1717541449907,-151.0,0.0002948,7]
[328561718,1717541449916,-151.0,0.0002948,7]
[328561719,1717541449925,-151.0,0.0002948,7]
[328561720,1717541449935,-236.788158,0.0002948,7]
[328561721,1717541449946,-236.788158,0.0002948,7]
[328561722,1717541449956,-236.788158,0.0002948,7]
[328561723,1717541449967,-236.788158,0.0002948,7]
[328561724,1717541449979,-236.788158,0.0002948,7]
[328561725,1717541449990,-236.788158,0.0002948,7]
[328561726,1717541450001,-489.977053,0.0002948,7]
[328561727,1717541450011,-489.977053,0.0002948,7]
[328561728,1717541450021,-489.977053,0.0002948,7]
[328561729,1717541450031,-489.977053,0.0002948,7]
[328561730,1717541450040,-151.0,0.0002948,7]
[328561731,1717541450050,-151.0,0.0002948,7]
[328561732,1717541450059,-3162.483563,0.0002948,7]
[328561733,1717541450069,-3162.483563,0.0002948,7]
[328561734,1717541450078,-151.0,0.0002948,7]
[328561735,1717541450088,-151.0,0.0002948,7]
[328561736,1717541450098,-3162.483563,0.0002948,7]
[328561737,1717541450108,-3162.483563,0.0002948,7]
[328561738,1717541450117,-184.577839,0.0002948,7]
[328561739,1717541450127,-184.577839,0.0002948,7]
[328561740,1717541450137,-184.577839,0.0002948,7]
[328561741,1717541450146,-184.577839,0.0002948,7]
[328561742,1717541450156,-311.047739,0.0002948,7]
[328561743,1717541450166,-311.047739,0.0002948,7]
[328561744,1717541450175,-311.047739,0.0002948,7]
[328561745,1717541450185,-311.047739,0.0002948,7]
[328561746,1717541450194,-311.047739,0.0002948,7]
[328561747,1717541450204,-311.047739,0.0002948,7]
[328561748,1717541450214,-151.61550666,0.00029483,2]
[328561749,1717541450223,-150.08206968,0.00029489,2]
[328561750,1717541450233,-1014.623247,0.000295,2]
[328561751,1717541450242,-186.96498729,0.000295,3]
[328561752,1717541450251,-309.0,0.000295,13]
[328561753,1717541450260,-690.0,0.000295,2]
[328561754,1717541450270,-3597.988273,0.00029515,2]
[328561755,1717541450280,-3190.0,0.0002953,15]
[328561756,1717541450290,-3398.0,0.0002953,15]
[328561757,1717541450300,-150.5,0.0002953,15]
[328561758,1717541450309,-198.0,0.0002953,15]
[328561759,1717541450319,-239.0,0.0002953,15]
[328561760,1717541450329,-220.66423378,0.00029534,2]
[328561761,1717541450339,-268.86931988,0.00029536,2]
[328561762,1717541450349,-3190.0,0.0002954,15]
[328561763,1717541450358,-3398.0,0.0002954,15]
[328561764,1717541450369,-150.5,0.0002954,15]
[328561765,1717541450378,-239.0,0.0002954,15]
[328561766,1717541450388,-198.0,0.0002954,15]
[328561767,1717541450397,-10000.0,0.00029543,2]
[328561768,1717541450406,-150.0,0.00029547,2]
[328561769,1717541450415,-3190.0,0.0002955,15]
[328561770,1717541450425,-3398.0,0.0002955,15]
[328561771,1717541450519,-150.5,0.0002955,15]
[328561772,1717541450529,-239.0,0.0002955,15]
[328561773,1717541450540,-198.0,0.0002955,15]
[328561774,1717541450551,-3398.0,0.0002955,15]
[328561775,1717541450561,-3190.0,0.0002955,15]
[328561776,1717541450571,-198.0,0.0002955,15]
[328561777,1717541450580,-150.5,0.0002955,15]
[328561778,1717541450590,-239.0,0.0002955,15]
[328561779,1717541450600,-150.5,0.0002955,15]
[328561780,1717541450611,-167.41,0.00029558,15]
[328561781,1717541450620,-150.0,0.00029559,7]
[328561782,1717541450629,-784100.82126985,0.0002956,5]
[328561783,1717541450638,-1000.0,0.0002956,2]
[328561784,1717541450647,-1000.0,0.0002956,2]
[328561785,1717541450658,-1000.0,0.0002956,2]
[328561786,1717541450667,-1000.0,0.0002956,2]
[328561787,1717541450677,-1000.0,0.0002956,2]
[328561788,1717541450686,-1000.0,0.0002956,2]
[328561789,1717541450697,-1000.0,0.0002956,2]
[328561790,1717541450706,-1000.0,0.0002956,2]
[328561791,1717541450716,-1000.0,0.0002956,2]
[328561792,1717541450726,-1000.0,0.0002956,2]
[328561793,1717541450735,-3190.0,0.0002956,15]
[328561794,1717541450745,-3398.0,0.0002956,15]
[328561795,1717541450755,-150.5,0.0002956,15]
[328561796,1717541450764,-198.0,0.0002956,15]
[328561797,1717541450773,-239.0,0.0002956,15]
[328561798,1717541450783,-3190.0,0.0002956,15]
[328561799,1717541450792,-198.0,0.0002956,15]
[328561800,1717541450801,-267.49,0.0002956,15]
[328561801,1717541450811,-3398.0,0.0002956,15]
[328561802,1717541450820,-239.0,0.0002956,15]
[328561803,1717541450830,-150.5,0.0002956,15]
[328561804,1717541450839,-222.713435,0.0002956,7]
[328561805,1717541450848,-500.0,0.0002956,2]
[328561806,1717541450858,-151.0,0.0002956,7]
[328561807,1717541450868,-209.259138,0.0002956,7]
[328561808,1717541450878,-209.259129,0.0002956,7]
[328561809,1717541450888,-161.936876,0.0002956,7]
[328561810,1717541450902,-161.936874,0.0002956,7]
[328561811,1717541450911,-225.722082,0.0002956,7]
[328561812,1717541450923,-179.569332,0.0002956,7]
[328561813,1717541450934,-179.569332,0.0002956,7]
[328561814,1717541450945,-151.0,0.0002956,7]
[328561815,1717541450955,-236.788158,0.0002956,7]
[328561816,1717541450966,-236.788158,0.0002956,7]
[328561817,1717541450977,-489.977053,0.0002956,7]
[328561818,1717541450987,-489.977046,0.0002956,7]
[328561819,1717541450998,-154.066057,0.0002956,7]
[328561820,1717541451007,-3162.483563,0.0002956,7]
[328561821,1717541451016,-3162.483571,0.0002956,7]
[328561822,1717541451026,-184.577839,0.0002956,7]
[328561823,1717541451035,-184.577834,0.0002956,7]
[328561824,1717541451044,-311.047739,0.0002956,7]
[328561825,1717541451054,-311.047742,0.0002956,7]
[328561826,1717541451064,-153.05703103,0.00029562,2]
[328561827,1717541451074,-3597.988273,0.00029563,2]
[328561828,1717541451084,-150.0,0.00029564,7]
[328561829,1717541451093,-1804.95,0.00029565,2]
[328561830,1717541451103,-154.15442757,0.00029565,2]
[328561831,1717541451112,-150.5,0.00029568,15]
[328561832,1717541451121,-156.963684,0.00029569,2]
[328561833,1717541451146,-156.963684,0.00029569,2]
[328561834,1717541451163,-156.963684,0.00029569,2]
[328561835,1717541451182,-156.963684,0.00029569,2]
[328561836,1717541451203,-1121.6735753,0.00029569,2]
[328561837,1717541451222,-925.5321251,0.00029569,2]
[328561838,1717541451239,-729.3906748,0.00029569,2]
[328561839,1717541451258,-533.2492246,0.00029569,2]
[328561840,1717541451272,-338.6630308,0.00029569,2]
[328561841,1717541451288,-338.6630308,0.00029569,2]
[328561842,1717541451308,-338.6630308,0.00029569,2]
[328561843,1717541451326,-338.6630308,0.00029569,2]
[328561844,1717541451340,-20003.3186357,0.00029569,2]
[328561845,1717541451359,-16505.4383136,0.00029569,2]
[328561846,1717541451373,-13007.5579915,0.00029569,2]
[328561847,1717541451389,-9509.6776694,0.00029569,2]
[328561848,1717541451404,-226.7148535,0.00029569,2]
[328561849,1717541451420,-226.7148535,0.00029569,2]
[328561850,1717541451434,-226.7148535,0.00029569,2]
[328561851,1717541451449,-226.7148535,0.00029569,2]
[328561852,1717541451465,-3520.7106737,0.00029569,2]
[328561853,1717541451480,-2913.9976671,0.00029569,2]
[328561854,1717541451495,-2307.2846606,0.00029569,2]
[328561855,1717541451510,-1700.5716541,0.00029569,2]
[328561856,1717541451526,-3190.0,0.0002957,15]
[328561857,1717541451543,-3398.0,0.0002957,15]
[328561858,1717541451561,-150.5,0.0002957,15]
[328561859,1717541451576,-198.0,0.0002957,15]
[328561860,1717541451591,-239.0,0.0002957,15]
[328561861,1717541451607,-3190.0,0.0002957,15]
[328561862,1717541451622,-3398.0,0.0002957,15]
[328561863,1717541451638,-198.0,0.0002957,15]
[328561864,1717541451654,-150.5,0.0002957,15]
[328561865,1717541451668,-239.0,0.0002957,15]
[328561866,1717541451683,-150.5,0.0002957,15]
[328561867,1717541451698,-190.0,0.0002957,15]
[328561868,1717541451713,-1000.0,0.0002957,2]
[328561869,1717541451728,-179.569332,0.0002957,7]
[328561870,1717541451742,-179.569324,0.0002957,7]
[328561871,1717541451758,-151.0,0.0002957,7]
[328561872,1717541451771,-236.788158,0.0002957,7]
[328561873,1717541451786,-236.788156,0.0002957,7]
[328561874,1717541451801,-150.5,0.00029578,15]
[328561875,1717541451816,-171.93768446,0.00029579,2]
[328561876,1717541451831,-269.0156115,0.00029587,2]
[328561877,1717541451845,-155.0,0.00029587,2]
[328561878,1717541451860,-207.8438008,0.00029587,2]
[328561879,1717541451875,-155.0,0.00029587,2]
[328561880,1717541451890,-158.06112085,0.00029587,2]
[328561881,1717541451908,-234.70114228,0.00029587,2]
[328561882,1717541451923,-150.0,0.00029588,7]
[328561883,1717541451937,-150.0,0.00029588,7]
[328561884,1717541451954,-337.90264459,0.00029589,6]
[328561885,1717541451971,-500.0,0.00029589,2]
[328561886,1717541451988,-500.0,0.00029589,2]
[328561887,1717541452002,-500.0,0.00029589,2]
[328561888,1717541452017,-500.0,0.00029589,2]
[328561889,1717541452031,-500.0,0.00029589,2]
[328561890,1717541452045,-500.0,0.00029589,2]
[328561891,1717541452061,-520.24165675,0.00029589,2]
[328561892,1717541452075,-476.13293573,0.00029589,6]
[328561893,1717541452089,-254.53189131,0.00029589,6]
[328561894,1717541452206,-500.0,0.00029589,6]
[328561895,1717541452231,-500.0,0.00029589,6]
[328561896,1717541452240,-500.0,0.00029589,6]
[328561897,1717541452249,-191.82186996,0.00029589,6]
[328561898,1717541452258,-500.0,0.00029589,6]
[328561899,1717541452267,-500.0,0.00029589,6]
[328561900,1717541452276,-500.0,0.00029589,6]
[328561901,1717541452285,-500.0,0.00029589,6]
[328561902,1717541452294,-500.0,0.00029589,6]
[328561903,1717541452303,-500.0,0.00029589,6]
[328561904,1717541452312,-309.86429829,0.00029589,6]
[328561905,1717541452321,-500.0,0.00029589,6]
[328561906,1717541452330,-500.0,0.00029589,6]
[328561907,1717541452339,-501.32011767,0.00029589,6]
[328561908,1717541452348,-500.0,0.00029589,6]
[328561909,1717541452357,-500.0,0.00029589,6]
[328561910,1717541452366,-500.0,0.00029589,6]
[328561911,1717541452376,-380.7669546,0.00029589,6]
[328561912,1717541452385,-500.0,0.00029589,6]
[328561913,1717541452395,-500.0,0.00029589,6]
[328561914,1717541452404,-598.86125346,0.00029589,6]
[328561915,1717541452414,-518.13932758,0.00029589,6]
[328561916,1717541452423,-500.0,0.00029589,6]
[328561917,1717541452431,-500.0,0.00029589,6]
[328561918,1717541452440,-500.0,0.00029589,6]
[328561919,1717541452450,-500.0,0.00029589,6]
[328561920,1717541452460,-500.0,0.00029589,6]
[328561921,1717541452469,-502.69825252,0.00029589,6]
[328561922,1717541452478,-500.0,0.00029589,6]
[328561923,1717541452487,-273.30285909,0.00029589,6]
[328561924,1717541452496,-500.0,0.00029589,6]
[328561925,1717541452506,-500.0,0.00029589,6]
[328561926,1717541452515,-500.0,0.00029589,6]
[328561927,1717541452525,-500.0,0.00029589,6]
[328561928,1717541452534,-505.53797544,0.00029589,6]
[328561929,1717541452543,-501.59764531,0.00029589,6]
[328561930,1717541452552,-500.0,0.00029589,6]
[328561931,1717541452561,-500.0,0.00029589,6]
[328561932,1717541452570,-500.0,0.00029589,6]
[328561933,1717541452579,-500.0,0.00029589,6]
[328561934,1717541452588,-500.0,0.00029589,6]
[328561935,1717541452597,-500.0,0.00029589,6]
[328561936,1717541452606,-273.88634666,0.00029589,6]
[328561937,1717541452615,-500.0,0.00029589,6]
[328561938,1717541452625,-500.0,0.00029589,6]
[328561939,1717541452634,-500.0,0.00029589,6]
[328561940,1717541452642,-551.40858566,0.00029589,6]
[328561941,1717541452652,-500.0,0.00029589,6]
[328561942,1717541452661,-157.94179492,0.00029589,6]
[328561943,1717541452671,-500.0,0.00029589,6]
[328561944,1717541452680,-500.0,0.00029589,6]
[328561945,1717541452689,-500.0,0.00029589,6]
[328561946,1717541452698,-507.33924825,0.00029589,6]
[328561947,1717541452707,-500.0,0.00029589,6]
[328561948,1717541452718,-500.0,0.00029589,6]
[328561949,1717541452726,-500.0,0.00029589,6]
[328561950,1717541452735,-500.0,0.00029589,6]
[328561951,1717541452745,-500.0,0.00029589,6]
[328561952,1717541452755,-161.86979476,0.00029589,6]
[328561953,1717541452764,-500.0,0.00029589,6]
[328561954,1717541452774,-500.0,0.00029589,6]
[328561955,1717541452783,-500.0,0.00029589,6]
[328561956,1717541452792,-500.0,0.00029589,6]
[328561957,1717541452801,-500.0,0.00029589,6]
[328561958,1717541452810,-500.0,0.00029589,6]
[328561959,1717541452819,-500.0,0.00029589,6]
[328561960,1717541452829,-500.0,0.00029589,6]
[328561961,1717541452838,-500.0,0.00029589,6]
[328561962,1717541452847,-500.0,0.00029589,6]
[328561963,1717541452856,-551.65526185,0.00029589,6]
[328561964,1717541452865,-627.8365504,0.00029589,6]
[328561965,1717541452874,-235.3062996,0.00029589,6]
[328561966,1717541452884,-240.2128006,0.00029589,6]
[328561967,1717541452893,-500.0,0.00029589,6]
[328561968,1717541452906,-500.0,0.00029589,6]
[328561969,1717541452915,-500.0,0.00029589,6]
[328561970,1717541452924,-500.0,0.00029589,6]
[328561971,1717541452933,-646.54669334,0.00029589,6]
[328561972,1717541452944,-500.0,0.00029589,6]
[328561973,1717541452953,-283.88441065,0.00029589,6]
[328561974,1717541452964,-500.0,0.00029589,6]
[328561975,1717541452973,-500.0,0.00029589,6]
[328561976,1717541452984,-500.0,0.00029589,6]
[328561977,1717541452994,-500.0,0.00029589,6]
[328561978,1717541453004,-500.0,0.00029589,6]
[328561979,1717541453014,-500.0,0.00029589,6]
[328561980,1717541453023,-307.69541406,0.00029589,6]
[328561981,1717541453032,-500.0,0.00029589,6]
[328561982,1717541453042,-500.0,0.00029589,6]
[328561983,1717541453051,-500.0,0.00029589,6]
[328561984,1717541453060,-500.0,0.00029589,6]
[328561985,1717541453070,-500.0,0.00029589,6]
[328561986,1717541453079,-500.0,0.00029589,6]
[328561987,1717541453088,-500.0,0.00029589,6]
[328561988,1717541453097,-500.0,0.00029589,6]
[328561989,1717541453107,-220.27,0.00029589,6]
[328561990,1717541453116,-500.0,0.00029589,6]
[328561991,1717541453126,-500.0,0.00029589,6]
[328561992,1717541453135,-500.0,0.00029589,6]
[328561993,1717541453145,-500.0,0.00029589,6]
[328561994,1717541453155,-500.0,0.00029589,6]
[328561995,1717541453164,-500.0,0.00029589,6]
[328561996,1717541453174,-500.0,0.00029589,6]
[328561997,1717541453183,-521.24,0.00029589,6]
[328561998,1717541453193,-500.0,0.00029589,6]
[328561999,1717541453202,-500.0,0.00029589,6]
[328562000,1717541453212,-500.0,0.00029589,6]
[328562001,1717541453222,-500.0,0.00029589,6]
[328562002,1717541453231,-500.0,0.00029589,6]
[328562003,1717541453241,-500.28623124,0.00029589,6]
[328562004,1717541453251,-500.0,0.00029589,6]
[328562005,1717541453260,-500.0,0.00029589,6]
[328562006,1717541453270,-414.67837459,0.00029589,6]
[328562007,1717541453280,-500.0,0.00029589,6]
[328562008,1717541453290,-500.0,0.00029589,6]
[328562009,1717541453299,-500.0,0.00029589,6]
[328562010,1717541453308,-357.24,0.00029589,6]
[328562011,1717541453318,-262.02540502,0.00029589,6]
[328562012,1717541453327,-500.0,0.00029589,6]
[328562013,1717541453337,-500.0,0.00029589,6]
[328562014,1717541453350,-500.0,0.00029589,6]
[328562015,1717541453359,-500.0,0.00029589,6]
[328562016,1717541453368,-500.0,0.00029589,6]
[328562017,1717541453378,-500.0,0.00029589,6]
[328562018,1717541453387,-500.0,0.00029589,6]
[328562019,1717541453397,-500.0,0.00029589,6]
[328562020,1717541453406,-500.0,0.00029589,6]
[328562021,1717541453416,-500.0,0.00029589,6]
[328562022,1717541453425,-500.0,0.00029589,6]
[328562023,1717541453434,-500.0,0.00029589,6]
[328562024,1717541453444,-500.0,0.00029589,6]
[328562025,1717541453453,-500.0,0.00029589,6]
[328562026,1717541453464,-500.0,0.00029589,6]
[328562027,1717541453472,-500.0,0.00029589,6]
[328562028,1717541453481,-500.0,0.00029589,6]
[328562029,1717541453491,-500.0,0.00029589,6]
[328562030,1717541453500,-500.0,0.00029589,6]
[328562031,1717541453510,-500.0,0.00029589,6]
[328562032,1717541453519,-500.0,0.00029589,6]
[328562033,1717541453530,-348.11575449,0.00029589,6]
[328562034,1717541453539,-500.0,0.00029589,6]
[328562035,1717541453635,-500.0,0.00029589,6]
[328562036,1717541453645,-500.0,0.00029589,6]
[328562037,1717541453654,-290.51,0.00029589,6]
[328562038,1717541453664,-500.0,0.00029589,6]
[328562039,1717541453674,-500.0,0.00029589,6]
[328562040,1717541453683,-500.0,0.00029589,6]
[328562041,1717541453692,-500.0,0.00029589,6]
[328562042,1717541453702,-500.0,0.00029589,6]
[328562043,1717541453711,-500.0,0.00029589,6]
[328562044,1717541453720,-500.0,0.00029589,6]
[328562045,1717541453730,-500.0,0.00029589,6]
[328562046,1717541453739,-500.0,0.00029589,6]
[328562047,1717541453748,-500.0,0.00029589,6]
[328562048,1717541453758,-500.0,0.00029589,6]
[328562049,1717541453768,-500.0,0.00029589,6]
[328562050,1717541453780,-500.0,0.00029589,6]
[328562051,1717541453790,-389.97997343,0.00029589,6]
[328562052,1717541453801,-500.0,0.00029589,6]
[328562053,1717541453811,-500.0,0.00029589,6]
[328562054,1717541453820,-500.0,0.00029589,6]
[328562055,1717541453830,-500.0,0.00029589,6]
[328562056,1717541453839,-500.0,0.00029589,6]
[328562057,1717541453848,-500.0,0.00029589,6]
[328562058,1717541453857,-500.0,0.00029589,6]
[328562059,1717541453867,-500.0,0.00029589,6]
[328562060,1717541453876,-554.27669132,0.00029589,6]
[328562061,1717541453885,-500.0,0.00029589,6]
[328562062,1717541453895,-152.63,0.00029589,6]
[328562063,1717541453907,-500.0,0.00029589,6]
[328562064,1717541453917,-500.0,0.00029589,6]
[328562065,1717541453926,-500.0,0.00029589,6]
[328562066,1717541453935,-500.0,0.00029589,6]
[328562067,1717541453948,-500.0,0.00029589,6]
[328562068,1717541453958,-500.0,0.00029589,6]
[328562069,1717541453968,-500.0,0.00029589,6]
[328562070,1717541453977,-565.43589682,0.00029589,6]
[328562071,1717541453988,-500.0,0.00029589,6]
[328562072,1717541453997,-500.0,0.00029589,6]
[328562073,1717541454006,-500.0,0.00029589,6]
[328562074,1717541454016,-500.0,0.00029589,6]
[328562075,1717541454025,-647.93385837,0.00029589,6]
[328562076,1717541454035,-500.0,0.00029589,6]
[328562077,1717541454044,-500.0,0.00029589,6]
[328562078,1717541454054,-500.0,0.00029589,6]
[328562079,1717541454063,-222.16949337,0.00029589,6]
[328562080,1717541454073,-500.0,0.00029589,6]
[328562081,1717541454082,-500.0,0.00029589,6]
[328562082,1717541454092,-500.0,0.00029589,6]
[328562083,1717541454101,-318.77,0.00029589,6]
[328562084,1717541454111,-284.87,0.00029589,6]
[328562085,1717541454120,-500.0,0.00029589,6]
[328562086,1717541454130,-500.0,0.00029589,6]
[328562087,1717541454139,-639.53063957,0.00029589,6]
[328562088,1717541454149,-500.0,0.00029589,6]
[328562089,1717541454158,-500.0,0.00029589,6]
[328562090,1717541454168,-500.0,0.00029589,6]
[328562091,1717541454177,-500.0,0.00029589,6]
[328562092,1717541454187,-500.0,0.00029589,6]
[328562093,1717541454197,-500.0,0.00029589,6]
[328562094,1717541454206,-500.0,0.00029589,6]
[328562095,1717541454217,-500.0,0.00029589,6]
[328562096,1717541454226,-500.0,0.00029589,6]
[328562097,1717541454236,-500.0,0.00029589,6]
[328562098,1717541454246,-500.0,0.00029589,6]
[328562099,1717541454256,-500.0,0.00029589,6]
[328562100,1717541454266,-500.0,0.00029589,6]
[328562101,1717541454275,-500.0,0.00029589,6]
[328562102,1717541454285,-500.0,0.00029589,6]
[328562103,1717541454294,-500.0,0.00029589,6]
[328562104,1717541454304,-500.0,0.00029589,6]
[328562105,1717541454313,-500.0,0.00029589,6]
[328562106,1717541454322,-500.0,0.00029589,6]
[328562107,1717541454332,-500.0,0.00029589,6]
[328562108,1717541454342,-500.0,0.00029589,6]
[328562109,1717541454351,-500.0,0.00029589,6]
[328562110,1717541454360,-500.0,0.00029589,6]
[328562111,1717541454370,-451.29,0.00029589,6]
[328562112,1717541454379,-502.39250084,0.00029589,6]
[328562113,1717541454389,-648.48,0.00029589,6]
[328562114,1717541454398,-500.0,0.00029589,6]
[328562115,1717541454407,-500.0,0.00029589,6]
[328562116,1717541454416,-500.0,0.00029589,6]
[328562117,1717541454426,-500.0,0.00029589,6]
[328562118,1717541454435,-500.0,0.00029589,6]
[328562119,1717541454445,-500.0,0.00029589,6]
[328562120,1717541454455,-500.0,0.00029589,6]
[328562121,1717541454465,-591.93534024,0.00029589,6]
[328562122,1717541454474,-500.0,0.00029589,6]
[328562123,1717541454484,-500.0,0.00029589,6]
[328562124,1717541454493,-500.0,0.00029589,6]
[328562125,1717541454503,-500.0,0.00029589,6]
[328562126,1717541454512,-500.0,0.00029589,6]
[328562127,1717541454522,-500.0,0.00029589,6]
[328562128,1717541454531,-500.0,0.00029589,6]
[328562129,1717541454541,-500.0,0.00029589,6]
[328562130,1717541454551,-618.20885671,0.00029589,6]
[328562131,1717541454560,-500.0,0.00029589,6]
[328562132,1717541454570,-500.0,0.00029589,6]
[328562133,1717541454579,-500.0,0.00029589,6]
[328562134,1717541454589,-350.64,0.00029589,6]
[328562135,1717541454598,-605.55,0.00029589,6]
[328562136,1717541454607,-500.0,0.00029589,6]
[328562137,1717541454617,-500.0,0.00029589,6]
[328562138,1717541454627,-500.0,0.00029589,6]
[328562139,1717541454637,-500.0,0.00029589,6]
[328562140,1717541454646,-500.0,0.00029589,6]
[328562141,1717541454656,-500.0,0.00029589,6]
[328562142,1717541454665,-500.0,0.00029589,6]
[328562143,1717541454674,-500.0,0.00029589,6]
[328562144,1717541454684,-500.0,0.00029589,6]
[328562145,1717541454693,-500.0,0.00029589,6]
[328562146,1717541454703,-500.0,0.00029589,6]
[328562147,1717541454713,-500.0,0.00029589,6]
[328562148,1717541454722,-500.0,0.00029589,6]
[328562149,1717541454731,-437.14,0.00029589,6]
[328562150,1717541454741,-502.5544182,0.00029589,6]
[328562151,1717541454750,-240.48,0.00029589,6]
[328562152,1717541454759,-500.0,0.00029589,6]
[328562153,1717541454769,-364.56,0.00029589,6]
[328562154,1717541454778,-500.0,0.00029589,6]
[328562155,1717541454787,-500.0,0.00029589,6]
[328562156,1717541454797,-500.0,0.00029589,6]
[328562157,1717541454806,-500.0,0.00029589,6]
[328562158,1717541454815,-500.0,0.00029589,6]
[328562159,1717541454824,-500.0,0.00029589,6]
[328562160,1717541454833,-500.0,0.00029589,6]
[328562161,1717541454844,-500.0,0.00029589,6]
[328562162,1717541454853,-500.0,0.00029589,6]
[328562163,1717541454862,-500.0,0.00029589,6]
[328562164,1717541454872,-276.47655137,0.00029589,6]
[328562165,1717541454881,-500.0,0.00029589,6]
[328562166,1717541454891,-500.0,0.00029589,6]
[328562167,1717541454904,-500.0,0.00029589,6]
[328562168,1717541454913,-500.0,0.00029589,6]
[328562169,1717541454922,-500.0,0.00029589,6]
[328562170,1717541454931,-500.0,0.00029589,6]
[328562171,1717541454941,-500.0,0.00029589,6]
[328562172,1717541454951,-500.0,0.00029589,6]
[328562173,1717541454961,-557.05388484,0.00029589,6]
[328562174,1717541454970,-500.0,0.00029589,6]
[328562175,1717541454983,-500.0,0.00029589,6]
[328562176,1717541454992,-231.4,0.00029589,6]
[328562177,1717541455002,-228.23,0.00029589,6]
[328562178,1717541455012,-500.0,0.00029589,6]
[328562179,1717541455022,-500.0,0.00029589,6]
[328562180,1717541455031,-500.0,0.00029589,6]
[328562181,1717541455040,-500.0,0.00029589,6]